[Event "Live Chess"]
[Site "Chess.com"]
[Date "2023.05.20"]
[Round "-"]
[White "JohanKjeldahl"]
[Black "Judgen68"]
[Result "1-0"]
[WhiteElo "1805"]
[BlackElo "1262"]
[TimeControl "300"]
[EndTime "12:15:06 PDT"]
[Termination "JohanKjeldahl won by resignation"]

1. e4 {[%clk 0:04:57.1]} 1... Nf6 {[%clk 0:04:57.2]} 2. e5 {[%clk 0:04:54.1]}
2... Nd5 {[%clk 0:04:54.1]} 3. d4 {[%clk 0:04:53]} 3... d6 {[%clk 0:04:53.1]} 4.
c4 {[%clk 0:04:50.5]} 4... Nb6 {[%clk 0:04:51.9]} 5. Nf3 {[%clk 0:04:49.5]} 5...
g6 {[%clk 0:04:45.4]} 6. Nc3 {[%clk 0:04:45.8]} 6... Bg7 {[%clk 0:04:43.7]} 7.
Bf4 {[%clk 0:04:43.6]} 7... O-O {[%clk 0:04:40.5]} 8. Be2 {[%clk 0:04:41.2]}
8... Nc6 {[%clk 0:04:29]} 9. exd6 {[%clk 0:04:33.6]} 9... cxd6 {[%clk
0:04:26.3]} 10. O-O {[%clk 0:04:27.4]} 10... d5 {[%clk 0:04:23.7]} 11. c5 {[%clk
0:04:23.8]} 11... Nc4 {[%clk 0:04:06.4]} 12. b3 {[%clk 0:04:17.7]} 12... e5
{[%clk 0:03:57.1]} 13. bxc4 {[%clk 0:04:11.6]} 13... exf4 {[%clk 0:03:55.1]} 14.
cxd5 {[%clk 0:04:09.4]} 14... Ne7 {[%clk 0:03:51]} 15. d6 {[%clk 0:04:06.6]}
15... Nf5 {[%clk 0:03:49.7]} 16. Rc1 {[%clk 0:03:52.7]} 16... g5 {[%clk
0:03:48.3]} 17. Ne5 {[%clk 0:03:40.3]} 17... Nh4 {[%clk 0:03:33.9]} 18. Nd5
{[%clk 0:03:32.7]} 18... Re8 {[%clk 0:03:10.5]} 19. Nc7 {[%clk 0:03:28.3]} 19...
Rxe5 {[%clk 0:03:03.6]} 20. dxe5 {[%clk 0:03:25.9]} 20... Bxe5 {[%clk
0:02:57.4]} 21. Nxa8 {[%clk 0:03:22.9]} 21... f3 {[%clk 0:02:55.7]} 22. Bxf3
{[%clk 0:03:20.6]} 22... g4 {[%clk 0:02:49.9]} 23. Bxg4 {[%clk 0:03:17.8]} 23...
Qg5 {[%clk 0:02:45.5]} 24. d7 {[%clk 0:03:03.7]} 24... Bxd7 {[%clk 0:02:28.1]}
25. Qxd7 {[%clk 0:03:00.9]} 25... Qf4 {[%clk 0:02:14]} 26. Qd8+ {[%clk
0:02:49.5]} 26... Kg7 {[%clk 0:02:12.2]} 27. Qxh4 {[%clk 0:02:47.4]} 1-0

[Event "Live Chess"]
[Site "Chess.com"]
[Date "2023.05.20"]
[Round "-"]
[White "1600x"]
[Black "booktrunk"]
[Result "1-0"]
[WhiteElo "1698"]
[BlackElo "1320"]
[TimeControl "300"]
[EndTime "12:15:08 PDT"]
[Termination "1600x won by checkmate"]

1. d4 {[%clk 0:04:57.8]} 1... d5 {[%clk 0:04:59.9]} 2. e3 {[%clk 0:04:55.5]}
2... Nf6 {[%clk 0:04:59.2]} 3. Nf3 {[%clk 0:04:53]} 3... Bf5 {[%clk 0:04:58.4]}
4. c4 {[%clk 0:04:51.5]} 4... h6 {[%clk 0:04:54.8]} 5. cxd5 {[%clk 0:04:50]}
5... Qxd5 {[%clk 0:04:53.7]} 6. Nc3 {[%clk 0:04:47.8]} 6... Qd8 {[%clk
0:04:51.9]} 7. Ne5 {[%clk 0:04:46.4]} 7... e6 {[%clk 0:04:50.5]} 8. Qb3 {[%clk
0:04:44.3]} 8... b6 {[%clk 0:04:44.6]} 9. e4 {[%clk 0:04:42.9]} 9... Bh7 {[%clk
0:04:42.5]} 10. Bb5+ {[%clk 0:04:40.8]} 10... Nfd7 {[%clk 0:04:39.4]} 11. d5
{[%clk 0:04:39.4]} 11... exd5 {[%clk 0:04:37.8]} 12. Qxd5 {[%clk 0:04:37.7]}
12... c6 {[%clk 0:04:33.6]} 13. Qxf7# {[%clk 0:04:35.4]} 1-0

[Event "Live Chess"]
[Site "Chess.com"]
[Date "2023.05.20"]
[Round "-"]
[White "bristolunichess"]
[Black "ViktorTheCoolBoy"]
[Result "0-1"]
[WhiteElo "1776"]
[BlackElo "2527"]
[TimeControl "300"]
[EndTime "12:15:13 PDT"]
[Termination "ViktorTheCoolBoy won on time"]

1. d4 {[%clk 0:04:48.7]} 1... d5 {[%clk 0:04:58.5]} 2. c4 {[%clk 0:04:44.6]}
2... e6 {[%clk 0:04:56.3]} 3. Nc3 {[%clk 0:04:43.1]} 3... a6 {[%clk 0:04:54.3]}
4. e3 {[%clk 0:04:41.5]} 4... Nf6 {[%clk 0:04:52.4]} 5. Nf3 {[%clk 0:04:39.5]}
5... c5 {[%clk 0:04:49.3]} 6. Be2 {[%clk 0:04:35.2]} 6... Nc6 {[%clk 0:04:47.2]}
7. O-O {[%clk 0:04:31.8]} 7... cxd4 {[%clk 0:04:45.2]} 8. Nxd4 {[%clk
0:04:30.2]} 8... Bc5 {[%clk 0:04:44.3]} 9. Nb3 {[%clk 0:04:22.3]} 9... Ba7
{[%clk 0:04:42.1]} 10. cxd5 {[%clk 0:04:06.1]} 10... exd5 {[%clk 0:04:40.5]} 11.
Bf3 {[%clk 0:04:04.1]} 11... Be6 {[%clk 0:04:37.8]} 12. Re1 {[%clk 0:03:52.1]}
12... O-O {[%clk 0:04:36.3]} 13. Ne2 {[%clk 0:03:38.7]} 13... Rc8 {[%clk
0:04:23.9]} 14. Nf4 {[%clk 0:03:36.2]} 14... Re8 {[%clk 0:04:15.3]} 15. a3
{[%clk 0:03:31.5]} 15... Qd6 {[%clk 0:04:10.5]} 16. Nxe6 {[%clk 0:03:00.6]}
16... Rxe6 {[%clk 0:04:04.9]} 17. Bd2 {[%clk 0:02:55.4]} 17... Ne4 {[%clk
0:03:57.5]} 18. Rc1 {[%clk 0:02:48.4]} 18... Rd8 {[%clk 0:03:54.4]} 19. Qc2
{[%clk 0:02:42.2]} 19... Qe7 {[%clk 0:03:46.1]} 20. Bc3 {[%clk 0:02:34.1]} 20...
Nxc3 {[%clk 0:03:43.5]} 21. Qxc3 {[%clk 0:02:33]} 21... h6 {[%clk 0:03:26.6]}
22. g3 {[%clk 0:02:31.9]} 22... Ne5 {[%clk 0:03:17.1]} 23. Bg2 {[%clk
0:02:30.2]} 23... Ng4 {[%clk 0:03:15.4]} 24. Rcd1 {[%clk 0:02:26.4]} 24... Rf6
{[%clk 0:03:00.1]} 25. Rd2 {[%clk 0:02:20.6]} 25... d4 {[%clk 0:02:57.1]} 26.
Qd3 {[%clk 0:02:11.1]} 26... Nxf2 {[%clk 0:02:50.7]} 27. Qe2 {[%clk 0:01:18.7]}
27... d3 {[%clk 0:02:39.8]} 28. Qh5 {[%clk 0:01:12.9]} 28... Ne4 {[%clk
0:02:33.9]} 29. Bxe4 {[%clk 0:01:08.7]} 29... Qxe4 {[%clk 0:02:32.2]} 30. Nc5
{[%clk 0:00:40]} 30... Qf3 {[%clk 0:02:26.2]} 31. Qxf3 {[%clk 0:00:37.6]} 31...
Rxf3 {[%clk 0:02:25.3]} 32. Nxb7 {[%clk 0:00:36]} 32... Rd7 {[%clk 0:02:22.1]}
33. Na5 {[%clk 0:00:30.3]} 33... Rxe3 {[%clk 0:02:20.4]} 34. Kf1 {[%clk
0:00:27.5]} 34... Rxe1+ {[%clk 0:02:12.1]} 35. Kxe1 {[%clk 0:00:26.5]} 35... Be3
{[%clk 0:02:10.2]} 36. Rd1 {[%clk 0:00:23.8]} 36... Re7 {[%clk 0:01:58.4]} 37.
Kf1 {[%clk 0:00:20.9]} 37... Bd4 {[%clk 0:01:53.8]} 38. Rxd3 {[%clk 0:00:19.2]}
38... Bxb2 {[%clk 0:01:52.6]} 39. Rd8+ {[%clk 0:00:17.8]} 39... Kh7 {[%clk
0:01:51.1]} 40. Nc4 {[%clk 0:00:15.9]} 40... Bf6 {[%clk 0:01:47.5]} 41. Nd6
{[%clk 0:00:13.8]} 41... Re6 {[%clk 0:01:37.7]} 42. Rd7 {[%clk 0:00:11.4]} 42...
Kg6 {[%clk 0:01:34.6]} 43. Nxf7 {[%clk 0:00:09.7]} 43... Be7 {[%clk 0:01:30.7]}
44. Nd8 {[%clk 0:00:04]} 44... Bxd8 {[%clk 0:01:26]} 45. Rxd8 {[%clk 0:00:02.9]}
45... Re3 {[%clk 0:01:25.6]} 46. a4 {[%clk 0:00:00.4]} 46... Re4 {[%clk
0:01:24.1]} 0-1

[Event "Live Chess"]
[Site "Chess.com"]
[Date "2023.05.20"]
[Round "-"]
[White "OleksiyJr1"]
[Black "jennybobby44"]
[Result "0-1"]
[WhiteElo "933"]
[BlackElo "1876"]
[TimeControl "300"]
[EndTime "12:15:14 PDT"]
[Termination "jennybobby44 won by resignation"]

1. e4 {[%clk 0:04:58.6]} 1... c5 {[%clk 0:04:59.4]} 2. c3 {[%clk 0:04:56.2]}
2... d5 {[%clk 0:04:58.6]} 3. exd5 {[%clk 0:04:54]} 3... Nf6 {[%clk 0:04:57.7]}
4. Nf3 {[%clk 0:04:52.5]} 4... Nxd5 {[%clk 0:04:56.9]} 5. d4 {[%clk 0:04:49.6]}
5... e6 {[%clk 0:04:55.9]} 6. dxc5 {[%clk 0:04:47.5]} 6... Bxc5 {[%clk
0:04:55.1]} 7. Bc4 {[%clk 0:04:45.8]} 7... O-O {[%clk 0:04:54.1]} 8. Bg5 {[%clk
0:04:42]} 8... Be7 {[%clk 0:04:45.9]} 9. Bxe7 {[%clk 0:04:40.4]} 9... Qxe7
{[%clk 0:04:40.7]} 10. O-O {[%clk 0:04:35.4]} 10... Nb6 {[%clk 0:04:39.9]} 11.
Bd3 {[%clk 0:04:30.8]} 11... h6 {[%clk 0:04:37.5]} 12. Nbd2 {[%clk 0:04:28.7]}
12... N8d7 {[%clk 0:04:35.8]} 13. Nc4 {[%clk 0:04:24.1]} 13... Nxc4 {[%clk
0:04:34.7]} 14. Bxc4 {[%clk 0:04:24]} 14... a6 {[%clk 0:04:33.2]} 15. Re1 {[%clk
0:04:17.4]} 15... b5 {[%clk 0:04:30.1]} 16. Bb3 {[%clk 0:04:15.8]} 16... Bb7
{[%clk 0:04:29.5]} 17. Bc2 {[%clk 0:04:11]} 17... Nf6 {[%clk 0:04:25.7]} 18. Re3
{[%clk 0:04:02.2]} 18... Rad8 {[%clk 0:04:22.8]} 19. Rd3 {[%clk 0:03:57.6]}
19... Rxd3 {[%clk 0:04:20]} 20. Qxd3 {[%clk 0:03:57.5]} 20... Rd8 {[%clk
0:04:18.9]} 21. Qe3 {[%clk 0:03:48.3]} 21... Qc7 {[%clk 0:03:49.3]} 22. Qe5
{[%clk 0:03:22.3]} 22... Qxe5 {[%clk 0:03:41.3]} 23. Nxe5 {[%clk 0:03:22.2]}
23... Rd2 {[%clk 0:03:37.8]} 24. Rc1 {[%clk 0:03:15.9]} 24... Be4 {[%clk
0:03:30.2]} 25. Bxe4 {[%clk 0:03:12.8]} 25... Nxe4 {[%clk 0:03:29.5]} 26. Ng4
{[%clk 0:03:08.6]} 26... f5 {[%clk 0:03:14.2]} 27. Re1 {[%clk 0:03:02.6]} 27...
Rxb2 {[%clk 0:02:51]} 28. f3 {[%clk 0:02:52.4]} 28... Nc5 {[%clk 0:02:40.2]} 29.
Ne5 {[%clk 0:02:46.5]} 29... Rxa2 {[%clk 0:02:37.4]} 30. Ng6 {[%clk 0:02:41.2]}
30... Kf7 {[%clk 0:02:33.1]} 31. Ne5+ {[%clk 0:02:35.2]} 31... Kf6 {[%clk
0:02:32.3]} 32. Nc6 {[%clk 0:02:32.3]} 32... Rc2 {[%clk 0:02:20.5]} 33. Nb4
{[%clk 0:02:29.4]} 33... Rxc3 {[%clk 0:02:17.5]} 34. Kf2 {[%clk 0:02:22]} 34...
Nd3+ {[%clk 0:02:16.6]} 35. Ke2 {[%clk 0:02:20.5]} 35... Nxb4 {[%clk 0:02:16.1]}
0-1

[Event "Live Chess"]
[Site "Chess.com"]
[Date "2023.05.20"]
[Round "-"]
[White "OceanFloater"]
[Black "LiamClery2020"]
[Result "0-1"]
[WhiteElo "979"]
[BlackElo "2086"]
[TimeControl "300"]
[EndTime "12:15:14 PDT"]
[Termination "LiamClery2020 won by resignation"]

1. e4 {[%clk 0:04:54.3]} 1... Nf6 {[%clk 0:04:59.9]} 2. e5 {[%clk 0:04:53.1]}
2... Nd5 {[%clk 0:04:58]} 3. Nc3 {[%clk 0:04:50.9]} 3... Nxc3 {[%clk 0:04:56.8]}
4. dxc3 {[%clk 0:04:50.2]} 4... d6 {[%clk 0:04:55.6]} 5. exd6 {[%clk 0:04:49]}
5... Qxd6 {[%clk 0:04:55.5]} 6. Qxd6 {[%clk 0:04:47.3]} 6... cxd6 {[%clk
0:04:55.4]} 7. Nf3 {[%clk 0:04:46.5]} 7... Nc6 {[%clk 0:04:53.9]} 8. Bb5 {[%clk
0:04:46]} 8... e5 {[%clk 0:04:53.3]} 9. Bxc6+ {[%clk 0:04:44.5]} 9... bxc6
{[%clk 0:04:53.2]} 10. c4 {[%clk 0:04:43.3]} 10... Be6 {[%clk 0:04:51.9]} 11. b3
{[%clk 0:04:42]} 11... Be7 {[%clk 0:04:51.4]} 12. O-O {[%clk 0:04:41.5]} 12...
Bf6 {[%clk 0:04:50.9]} 13. Re1 {[%clk 0:04:40.7]} 13... e4 {[%clk 0:04:49.8]}
14. Rxe4 {[%clk 0:04:30.8]} 14... Bxa1 {[%clk 0:04:49.1]} 15. Ng5 {[%clk
0:04:26.8]} 15... O-O {[%clk 0:04:47.3]} 16. Nxe6 {[%clk 0:04:24.5]} 16... fxe6
{[%clk 0:04:47.2]} 17. Rxe6 {[%clk 0:04:23.4]} 17... Rae8 {[%clk 0:04:46.7]} 18.
h3 {[%clk 0:04:21]} 18... Rxe6 {[%clk 0:04:46]} 0-1

[Event "Live Chess"]
[Site "Chess.com"]
[Date "2023.05.20"]
[Round "-"]
[White "BostonStrangler"]
[Black "TDCMF"]
[Result "1-0"]
[WhiteElo "2060"]
[BlackElo "370"]
[TimeControl "300"]
[EndTime "12:15:15 PDT"]
[Termination "BostonStrangler won by checkmate"]

1. Nf3 {[%clk 0:04:58.1]} 1... d5 {[%clk 0:04:57.4]} 2. g3 {[%clk 0:04:56.7]}
2... Nc6 {[%clk 0:04:53.4]} 3. c4 {[%clk 0:04:53.2]} 3... d4 {[%clk 0:04:52.4]}
4. d3 {[%clk 0:04:51.6]} 4... e5 {[%clk 0:04:49.2]} 5. Bg2 {[%clk 0:04:50.7]}
5... Bf5 {[%clk 0:04:38.8]} 6. O-O {[%clk 0:04:49.3]} 6... Bc5 {[%clk
0:04:23.1]} 7. b4 {[%clk 0:04:47.6]} 7... Nxb4 {[%clk 0:04:15.8]} 8. Nxe5 {[%clk
0:04:45.8]} 8... Qe7 {[%clk 0:03:57.6]} 9. Bxb7 {[%clk 0:04:41.3]} 9... Rd8
{[%clk 0:03:46.9]} 10. Nc6 {[%clk 0:04:37.8]} 10... Qd7 {[%clk 0:03:42.5]} 11.
Nxb4 {[%clk 0:04:34.6]} 11... Bxb4 {[%clk 0:03:35.7]} 12. Ba3 {[%clk 0:04:26.4]}
12... Bxa3 {[%clk 0:03:30.7]} 13. Nxa3 {[%clk 0:04:26.3]} 13... Qd6 {[%clk
0:03:15.4]} 14. Nb5 {[%clk 0:04:21.4]} 14... Qh6 {[%clk 0:03:03]} 15. Nxc7+
{[%clk 0:04:17.5]} 15... Kd7 {[%clk 0:03:00.2]} 16. Nd5 {[%clk 0:04:11.3]} 16...
Nf6 {[%clk 0:02:44.2]} 17. Qa4+ {[%clk 0:04:07.9]} 17... Ke6 {[%clk 0:02:36]}
18. Qc6+ {[%clk 0:04:03.5]} 18... Rd6 {[%clk 0:02:33.3]} 19. Nf4+ {[%clk
0:03:50.4]} 19... Ke5 {[%clk 0:02:26]} 20. Qc5+ {[%clk 0:03:45]} 20... Nd5
{[%clk 0:02:15.6]} 21. cxd5 {[%clk 0:03:39.8]} 21... Rxd5 {[%clk 0:02:14.3]} 22.
Qxd5+ {[%clk 0:03:38.2]} 22... Kf6 {[%clk 0:02:11]} 23. Qxd4+ {[%clk 0:03:37.1]}
23... Ke7 {[%clk 0:02:02.5]} 24. Qe5+ {[%clk 0:03:35.4]} 24... Qe6 {[%clk
0:01:58.8]} 25. Nd5+ {[%clk 0:03:29.4]} 25... Kd7 {[%clk 0:01:54.8]} 26. Qc7+
{[%clk 0:03:25.7]} 26... Ke8 {[%clk 0:01:46.9]} 27. Bc6+ {[%clk 0:03:24.6]}
27... Qd7 {[%clk 0:01:41.4]} 28. Qc8# {[%clk 0:03:19.7]} 1-0

[Event "Live Chess"]
[Site "Chess.com"]
[Date "2023.05.20"]
[Round "-"]
[White "elizaveta_frundina"]
[Black "bigedd"]
[Result "1-0"]
[WhiteElo "1565"]
[BlackElo "767"]
[TimeControl "300"]
[EndTime "12:15:15 PDT"]
[Termination "elizaveta_frundina won by resignation"]

1. e4 {[%clk 0:04:57]} 1... c5 {[%clk 0:04:57.8]} 2. Nf3 {[%clk 0:04:54]} 2...
Nc6 {[%clk 0:04:56.3]} 3. d4 {[%clk 0:04:52.8]} 3... e6 {[%clk 0:04:53.1]} 4. d5
{[%clk 0:04:47.8]} 4... exd5 {[%clk 0:04:50.9]} 5. exd5 {[%clk 0:04:47]} 5...
Nd4 {[%clk 0:04:47.3]} 6. Nxd4 {[%clk 0:04:44.7]} 6... cxd4 {[%clk 0:04:44.9]}
7. Qxd4 {[%clk 0:04:43.8]} 7... Nf6 {[%clk 0:04:39.8]} 8. d6 {[%clk 0:04:41.4]}
8... Qb6 {[%clk 0:04:29.8]} 9. Qe5+ {[%clk 0:04:33.2]} 9... Kd8 {[%clk
0:04:19.6]} 10. Bf4 {[%clk 0:03:53.8]} 10... Ng4 {[%clk 0:04:05.7]} 11. Qg5+
{[%clk 0:03:44.8]} 11... Nf6 {[%clk 0:03:57.5]} 12. Nc3 {[%clk 0:03:27.9]} 12...
Bxd6 {[%clk 0:03:51.8]} 13. Qxg7 {[%clk 0:03:18.7]} 13... Re8+ {[%clk
0:03:31.3]} 14. Be2 {[%clk 0:03:11.5]} 14... Bxf4 {[%clk 0:03:27.8]} 15. O-O
{[%clk 0:03:00.4]} 15... Qc7 {[%clk 0:02:55.1]} 16. Qxf6+ {[%clk 0:02:55.3]} 1-0

[Event "Live Chess"]
[Site "Chess.com"]
[Date "2023.05.20"]
[Round "-"]
[White "domrobson"]
[Black "Ayush_prahlad_Gupta"]
[Result "1-0"]
[WhiteElo "1752"]
[BlackElo "1785"]
[TimeControl "300"]
[EndTime "12:15:19 PDT"]
[Termination "domrobson won by checkmate"]

1. d4 {[%clk 0:04:59.3]} 1... d5 {[%clk 0:04:57.6]} 2. c4 {[%clk 0:04:59]} 2...
Nf6 {[%clk 0:04:57.1]} 3. Nf3 {[%clk 0:04:58.4]} 3... Bf5 {[%clk 0:04:57]} 4.
Nc3 {[%clk 0:04:57.7]} 4... e6 {[%clk 0:04:56.4]} 5. Qb3 {[%clk 0:04:56.7]} 5...
dxc4 {[%clk 0:04:56.2]} 6. Qxb7 {[%clk 0:04:54.9]} 6... Nbd7 {[%clk 0:04:55]} 7.
e3 {[%clk 0:04:51]} 7... Ne4 {[%clk 0:04:50.3]} 8. Nxe4 {[%clk 0:04:47.9]} 8...
Bxe4 {[%clk 0:04:50.1]} 9. Qxe4 {[%clk 0:04:46.5]} 9... Bb4+ {[%clk 0:04:48.6]}
10. Bd2 {[%clk 0:04:43.7]} 10... Bxd2+ {[%clk 0:04:47.7]} 11. Nxd2 {[%clk
0:04:42.5]} 11... O-O {[%clk 0:04:47.6]} 12. Bxc4 {[%clk 0:04:41.2]} 12... f5
{[%clk 0:04:47.5]} 13. Qxe6+ {[%clk 0:04:36.8]} 13... Kh8 {[%clk 0:04:47.4]} 14.
O-O {[%clk 0:04:35.2]} 14... Rf6 {[%clk 0:04:42.6]} 15. Qd5 {[%clk 0:04:32.1]}
15... Rh6 {[%clk 0:04:38.4]} 16. h3 {[%clk 0:04:28.4]} 16... Rb8 {[%clk
0:04:31]} 17. Nf3 {[%clk 0:04:26.4]} 17... Rg6 {[%clk 0:04:28.3]} 18. b3 {[%clk
0:04:16.4]} 18... Qf6 {[%clk 0:04:22.6]} 19. Qxd7 {[%clk 0:04:02]} 19... h6
{[%clk 0:04:02.9]} 20. Ne5 {[%clk 0:03:59.1]} 20... Rg5 {[%clk 0:03:57.4]} 21.
Nf7+ {[%clk 0:03:56.9]} 21... Kh7 {[%clk 0:03:55.9]} 22. Nxg5+ {[%clk
0:03:55.3]} 22... Qxg5 {[%clk 0:03:55.8]} 23. Bd3 {[%clk 0:03:53.4]} 23... Rb6
{[%clk 0:03:48.4]} 24. Bxf5+ {[%clk 0:03:49]} 24... Rg6 {[%clk 0:03:40.5]} 25.
Bxg6+ {[%clk 0:03:39.6]} 25... Qxg6 {[%clk 0:03:40.4]} 26. Rac1 {[%clk
0:03:38.3]} 26... Qe4 {[%clk 0:03:33.3]} 27. Rxc7 {[%clk 0:03:33.6]} 27... Kg6
{[%clk 0:03:31.3]} 28. Qxg7+ {[%clk 0:03:31.8]} 28... Kh5 {[%clk 0:03:31.2]} 29.
Rc5+ {[%clk 0:03:30]} 29... Kh4 {[%clk 0:03:28.4]} 30. Qf6# {[%clk 0:03:27.9]}
1-0

[Event "Live Chess"]
[Site "Chess.com"]
[Date "2023.05.20"]
[Round "-"]
[White "Tilbs_12"]
[Black "rideuv21"]
[Result "0-1"]
[WhiteElo "1561"]
[BlackElo "1832"]
[TimeControl "300"]
[EndTime "12:15:21 PDT"]
[Termination "rideuv21 won by resignation"]

1. e4 {[%clk 0:04:58.3]} 1... c5 {[%clk 0:04:59.9]} 2. c3 {[%clk 0:04:57.1]}
2... Nf6 {[%clk 0:04:57.5]} 3. e5 {[%clk 0:04:54.7]} 3... Nd5 {[%clk 0:04:57]}
4. d4 {[%clk 0:04:54.2]} 4... cxd4 {[%clk 0:04:56.9]} 5. cxd4 {[%clk 0:04:53.5]}
5... d6 {[%clk 0:04:55.7]} 6. f4 {[%clk 0:04:40.2]} 6... Nc6 {[%clk 0:04:49.2]}
7. Nc3 {[%clk 0:04:35.8]} 7... Nxc3 {[%clk 0:04:47.5]} 8. bxc3 {[%clk
0:04:34.8]} 8... dxe5 {[%clk 0:04:47.3]} 9. fxe5 {[%clk 0:04:33.2]} 9... Bf5
{[%clk 0:04:46.4]} 10. Nf3 {[%clk 0:04:30]} 10... e6 {[%clk 0:04:45.4]} 11. Bd3
{[%clk 0:04:24.8]} 11... Bxd3 {[%clk 0:04:39.9]} 12. Qxd3 {[%clk 0:04:23.3]}
12... Be7 {[%clk 0:04:37.7]} 13. O-O {[%clk 0:04:20.8]} 13... O-O {[%clk
0:04:36.4]} 14. a4 {[%clk 0:04:10.3]} 14... Rc8 {[%clk 0:04:34.8]} 15. Ba3
{[%clk 0:04:08.5]} 15... Bxa3 {[%clk 0:04:33.2]} 16. Rxa3 {[%clk 0:04:07.7]}
16... Na5 {[%clk 0:04:32.4]} 17. Nd2 {[%clk 0:03:51.3]} 17... Qd5 {[%clk
0:04:15.7]} 18. Rc1 {[%clk 0:03:44.5]} 18... Nc4 {[%clk 0:04:04.1]} 19. Nxc4
{[%clk 0:03:42.7]} 19... Qxc4 {[%clk 0:04:03.8]} 20. Qxc4 {[%clk 0:03:19.3]}
20... Rxc4 {[%clk 0:04:03.7]} 21. Kf2 {[%clk 0:03:18.3]} 21... Rfc8 {[%clk
0:03:58.5]} 22. Ke3 {[%clk 0:03:16.8]} 22... a6 {[%clk 0:03:54.3]} 23. Kd3
{[%clk 0:03:15.6]} 23... b5 {[%clk 0:03:53]} 24. axb5 {[%clk 0:03:13.5]} 24...
axb5 {[%clk 0:03:52.9]} 25. Rb3 {[%clk 0:03:11.5]} 25... b4 {[%clk 0:03:50.3]}
26. Kd2 {[%clk 0:02:08.7]} 26... bxc3+ {[%clk 0:03:46.2]} 27. Rbxc3 {[%clk
0:02:07]} 27... Rxd4+ {[%clk 0:03:45.8]} 28. Ke3 {[%clk 0:02:02.5]} 28... Rxc3+
{[%clk 0:03:45.3]} 29. Rxc3 {[%clk 0:02:01.3]} 29... Rd8 {[%clk 0:03:44.9]} 30.
Rc7 {[%clk 0:01:57.2]} 30... g6 {[%clk 0:03:43.9]} 31. h4 {[%clk 0:01:54]} 31...
Rd5 {[%clk 0:03:43.1]} 32. Ke4 {[%clk 0:01:48.9]} 32... Ra5 {[%clk 0:03:41.5]}
33. g3 {[%clk 0:01:46.8]} 33... Kg7 {[%clk 0:03:39.8]} 34. Rb7 {[%clk
0:01:44.1]} 34... Ra4+ {[%clk 0:03:39]} 35. Kf3 {[%clk 0:01:42.5]} 35... h6
{[%clk 0:03:36.4]} 36. Rc7 {[%clk 0:01:37.6]} 36... g5 {[%clk 0:03:35.7]} 37.
hxg5 {[%clk 0:01:35.1]} 37... hxg5 {[%clk 0:03:35.6]} 38. Rb7 {[%clk 0:01:25.8]}
38... Kg6 {[%clk 0:03:34.1]} 39. Re7 {[%clk 0:01:22.1]} 39... Ra5 {[%clk
0:03:24]} 40. Ke4 {[%clk 0:01:16.5]} 40... Ra3 {[%clk 0:03:20.2]} 41. g4 {[%clk
0:01:05.3]} 41... Ra4+ {[%clk 0:03:15.8]} 42. Kf3 {[%clk 0:01:03.2]} 42... Rf4+
{[%clk 0:03:12.6]} 43. Kg3 {[%clk 0:00:59.9]} 43... Re4 {[%clk 0:03:06.9]} 44.
Re8 {[%clk 0:00:57.7]} 44... Rxe5 {[%clk 0:03:05.1]} 45. Rg8+ {[%clk 0:00:56.9]}
45... Kf6 {[%clk 0:03:03.7]} 46. Rh8 {[%clk 0:00:53.1]} 46... Re3+ {[%clk
0:03:02.7]} 47. Kf2 {[%clk 0:00:51.6]} 47... Ra3 {[%clk 0:03:02.3]} 48. Rh6+
{[%clk 0:00:49.1]} 48... Ke5 {[%clk 0:03:01.5]} 49. Rh5 {[%clk 0:00:44.2]} 49...
Kf4 {[%clk 0:02:56.3]} 50. Rh7 {[%clk 0:00:41.5]} 50... Rf3+ {[%clk 0:02:55.8]}
51. Ke2 {[%clk 0:00:39.3]} 51... Kxg4 {[%clk 0:02:55.5]} 52. Rh1 {[%clk
0:00:36]} 52... f5 {[%clk 0:02:52.1]} 53. Rg1+ {[%clk 0:00:35]} 53... Rg3 {[%clk
0:02:51.6]} 54. Rb1 {[%clk 0:00:33.5]} 54... e5 {[%clk 0:02:50.1]} 55. Rb8
{[%clk 0:00:31.5]} 55... e4 {[%clk 0:02:49.6]} 56. Re8 {[%clk 0:00:29.7]} 56...
e3 {[%clk 0:02:47.4]} 57. Rb8 {[%clk 0:00:25.1]} 57... f4 {[%clk 0:02:46.5]} 58.
Rg8 {[%clk 0:00:23.4]} 58... Rg2+ {[%clk 0:02:45.8]} 59. Kd3 {[%clk 0:00:20.2]}
59... Rd2+ {[%clk 0:02:43.5]} 60. Ke4 {[%clk 0:00:18.8]} 60... e2 {[%clk
0:02:42.5]} 0-1